bitfinex-derivatives/quotes_SOLF0:USTF0_20240820
["timestamp","ask_amount","ask_price","bid_price","bid_amount"]
[1724171664481,3.51,142.42,142.37,12.98]
[1724171664990,3.51,142.42,142.39,3.5105]
[1724171665187,3.5097,142.43,142.37,12.98]
[1724171665384,3.5097,142.43,142.31,6.05753016]
[1724171665385,12.98,142.45,142.39,13.0266611]
[1724171665680,3.5094,142.44,142.41,0.0483468]
[1724171665874,12.98,142.45,142.41,0.0483468]
[1724171666473,12.98,142.45,142.42,3.5098]
[1724171666684,1.2786,142.49,142.42,12.98]
[1724171666886,12.98,142.48,142.42,12.98]
[1724171667392,12.98,142.48,142.45,3.509]
[1724171667584,12.98,142.48,142.42,12.98]
[1724171667976,1.2786,142.49,142.43,12.98]
[1724171668179,14.2586,142.49,142.43,12.98]
[1724171668378,14.2586,142.49,142.45,0.05077367]
[1724171668777,17.7668,142.49,142.45,3.55977367]
[1724171669976,16.4885,142.48,142.45,0.05077367]
[1724171671078,3.5087,142.47,142.45,0.05077367]
[1724171671285,12.98,142.46,142.45,0.05077367]
[1724171673288,16.4889,142.46,142.45,0.05077367]
[1724171674480,16.4889,142.46,142.37,1.2748]
[1724171674481,3.5098,142.43,142.38,12.98]
[1724171674787,12.98,142.43,142.39,3.5105]
[1724171675091,3.51,142.42,142.39,3.5105]
[1724171675281,12.98,142.42,142.38,3.5108]
[1724171675480,3.5102,142.41,142.38,3.5108]
[1724171675883,12.98,142.41,142.37,3.5111]
[1724171676083,12.98,142.41,142.32,1.2715]
[1724171676084,16.4906,142.39,142.34,12.98]
[1724171676486,16.4906,142.39,142.38,0.05166781]
[1724171676683,16.4906,142.39,142.34,12.98]
[1724171676883,0.04909841,142.38,142.34,12.98]
[1724171677084,0.04909841,142.38,142.37,0.05107072]
[1724171678587,3.55999841,142.38,142.37,0.05107072]
[1724171682694,3.55999841,142.38,142.29,32.36]
[1724171682695,35.85560739,142.38,142.29,32.36]
[1724171682895,35.80650898,142.38,142.3,1.29020449]
[1724171683288,35.80650898,142.38,142.32,3.5122]
[1724171683289,3.5118,142.35,142.32,3.5122]
[1724171683689,3.5659142,142.35,142.32,3.56550011]
[1724171692100,3.5659142,142.35,142.33,3.5121]
[1724171695305,0.0541142,142.35,142.34,3.5119]
[1724171695494,0.0541142,142.35,142.32,0.05330011]
[1724171696905,3.5658142,142.35,142.33,3.512]
[1724171697410,3.5658142,142.35,142.32,3.56540011]
[1724171697803,0.0541142,142.35,142.32,0.05330011]
[1724171698004,0.0541142,142.35,142.34,3.5119]
[1724171700508,12.9941142,142.35,142.34,3.5119]
[1724171701112,0.0541142,142.35,142.34,3.5119]
[1724171702412,6.12404144,142.43,142.34,12.94]
[1724171702706,14.2182,142.42,142.36,12.94]
[1724171703008,12.94,142.38,142.33,1.3159]
[1724171703208,12.94,142.37,142.3,12.94]
[1724171703394,16.4513,142.37,142.34,3.5117]
[1724171703600,0.05397784,142.35,142.34,3.5117]
[1724171704301,0.05397784,142.35,142.34,10.5317]
[1724171704501,0.05397784,142.35,142.34,3.5117]
[1724171704709,0.05397784,142.35,142.33,3.5119]
[1724171705012,12.99397784,142.35,142.32,0.05208395]
[1724171705205,16.50567784,142.35,142.32,3.56428395]
[1724171706511,12.99397784,142.35,142.32,3.56428395]
[1724171706711,0.05397784,142.35,142.32,3.56428395]
[1724171708409,12.94,142.33,142.23,6.15370591]
[1724171708712,3.51198816,142.35,142.25,12.94]
[1724171708713,12.94,142.31,142.25,12.94]
[1724171708913,16.4526,142.31,142.27,3.5134]
[1724171709414,3.57532328,142.33,142.23,6.15370591]
[1724171709415,12.94,142.29,142.26,3.5137]
[1724171709609,3.513,142.3,142.23,2.6971]
[1724171709610,0.04529673,142.3,142.28,0.04559689]
[1724171709810,12.94,142.28,142.23,2.6971]
[1724171710008,12.94,142.28,142.25,3.514]
[1724171710213,12.94,142.26,142.24,0.05348947]
[1724171710511,3.5139,142.26,142.24,0.05348947]
[1724171710711,0.05273877,142.27,142.24,0.05348947]
[1724171711813,0.05273877,142.27,142.26,3.5138]
[1724171712414,1.3602,142.34,142.26,32.38]
[1724171712618,1.3602,142.34,142.28,32.38]
[1724171713123,42.44665357,142.55,142.3,32.38]
[1724171713124,7.0178,142.47,142.3,32.38]
[1724171713418,34.9431,142.4,142.3,32.38]
[1724171713612,0.04477511,142.38,142.35,0.04468439]
[1724171714906,3.5114,142.36,142.35,0.04468439]
[1724171716213,32.38,142.36,142.25,34.9551]
[1724171716417,32.38,142.34,142.26,1.29042794]
[1724171716619,3.5125,142.32,142.29,3.5131]
[1724171716920,35.94614433,142.34,142.25,34.9551]
[1724171717124,35.94614433,142.34,142.26,1.29052021]
[1724171717420,0.04512544,142.31,142.28,3.56265949]
[1724171717818,3.55772544,142.31,142.28,3.56265949]
[1724171721721,0.04512544,142.31,142.29,3.5131]
[1724171722926,3.55772544,142.31,142.28,3.56275949]
[1724171723231,0.04512544,142.31,142.28,0.04945949]
[1724171724028,3.55782544,142.31,142.28,3.56265949]
[1724171724234,0.04512544,142.31,142.28,0.04945949]
[1724171725117,3.5129,142.3,142.28,3.56275949]
[1724171725313,3.5129,142.3,142.28,0.04945949]
[1724171725517,0.04512544,142.31,142.28,0.04945949]
[1724171725924,32.38,142.3,142.28,0.04945949]
[1724171726226,3.5131,142.29,142.28,0.04945949]
[1724171727028,3.5139,142.26,142.22,1.3163]
[1724171727230,3.5139,142.26,142.23,1.29079288]
[1724171727418,32.38,142.29,142.24,1.29079288]
[1724171727626,3.5137,142.27,142.24,3.5143]
[1724171728326,3.5138,142.26,142.24,0.04480627]
[1724171728627,3.5138,142.26,142.24,1.33560916]
[1724171728816,3.5138,142.26,142.24,0.04480627]
[1724171729543,3.5138,142.26,142.24,1.33560934]
[1724171730029,3.5138,142.26,142.24,0.04480627]
[1724171730526,3.5138,142.26,142.24,1.33560293]
[1724171730730,3.5138,142.26,142.24,0.04480627]
[1724171732427,16.4638,142.26,142.24,0.04480627]
[1724171735631,16.4638,142.26,142.24,3.55910627]
[1724171738727,0.04708384,142.27,142.25,3.5141]
[1724171739136,3.56068384,142.27,142.25,3.5141]
[1724171739536,0.04708384,142.27,142.26,3.5138]
[1724171742130,0.04708384,142.27,142.24,0.04480627]
[1724171742324,0.04708384,142.27,142.24,1.33552265]
[1724171743726,0.04708384,142.27,142.26,3.5138]
[1724171747042,16.51078384,142.27,142.24,0.04480627]
[1724171747233,12.95,142.26,142.24,0.04480627]
[1724171747632,16.464,142.26,142.24,3.55900627]
[1724171747833,16.464,142.26,142.24,0.04480627]
[1724171748338,16.4641,142.25,142.24,0.04480627]
[1724171748843,3.5144,142.24,142.21,3.5149]
[1724171749043,12.95,142.23,142.21,3.5149]
[1724171749232,12.95,142.23,142.19,3.5154]
[1724171749428,12.95,142.22,142.19,3.5154]
[1724171750037,16.51817707,142.22,142.19,3.55969233]
[1724171750233,13.00317707,142.22,142.19,0.04429233]
[1724171750437,32.45317707,142.22,142.19,0.04429233]
[1724171751142,3.5151,142.21,142.19,0.04429233]
[1724171751731,32.45317707,142.22,142.19,0.04429233]
[1724171751936,35.96807707,142.22,142.19,3.55979233]
[1724171752238,32.45317707,142.22,142.19,3.55979233]
[1724171752944,32.45317707,142.22,142.19,0.04429233]
[1724171753143,0.05317707,142.22,142.19,0.04429233]
[1724171753742,0.05317707,142.22,142.21,3.5151]
[1724171753950,0.05317707,142.22,142.19,0.04429233]
[1724171754772,0.05317707,142.22,142.2,3.5153]
[1724171755243,0.05317707,142.22,142.19,0.04429233]
[1724171755430,0.05317707,142.22,142.21,3.5151]
[1724171757249,0.05317707,142.22,142.19,0.04429233]
[1724171757747,0.05317707,142.22,142.21,3.5151]
[1724171757944,0.05317707,142.22,142.19,0.04429233]
[1724171758346,0.05317707,142.22,142.2,3.5151]
[1724171759349,0.05317707,142.22,142.21,3.5151]
[1724171762255,0.05317707,142.22,142.19,0.04429233]
[1724171762446,0.05317707,142.22,142.2,3.5153]
[1724171764148,35.96797707,142.22,142.2,3.5153]
[1724171765052,35.96797707,142.22,142.19,3.55969233]
[1724171765257,32.4,142.2,142.19,0.04429233]
[1724171765948,35.9153,142.2,142.19,0.04429233]
[1724171766346,32.4,142.2,142.12,33.7034]
[1724171766549,35.9155,142.2,142.17,3.5159]
[1724171767153,35.9155,142.2,142.12,33.7034]
[1724171767457,0.04690201,142.17,142.15,0.0520459]
[1724171768850,0.04690201,142.17,142.16,3.5163]
[1724171770042,32.4,142.24,142.2,3.5151]
[1724171770242,32.4,142.24,142.15,0.0520459]
[1724171770243,32.4,142.24,142.15,32.4]
[1724171770447,12.95,142.25,142.23,3.5144]
[1724171770648,12.95,142.25,142.19,12.95]
[1724171771061,0.0451566,142.23,142.22,3.5147]
[1724171773145,0.0451566,142.23,142.21,3.56039678]
[1724171775074,0.0451566,142.23,142.22,3.5148]
[1724171776155,0.0451566,142.23,142.21,3.56039678]
[1724171777256,0.0451566,142.23,142.22,3.5148]
[1724171779657,0.0451566,142.23,142.21,0.04539678]
[1724171780060,3.5598566,142.23,142.21,0.04539678]
[1724171780259,0.0451566,142.23,142.21,0.04539678]
[1724171780657,3.5598566,142.23,142.21,0.04539678]
[1724171781969,0.0451566,142.23,142.21,0.04539678]
[1724171783455,0.0451566,142.23,142.22,3.5148]
[1724171791366,3.5132,142.29,142.21,32.42539678]
[1724171791566,32.38,142.31,142.21,32.38]
[1724171791773,32.38,142.31,142.23,32.38]
[1724171791961,39.8061,142.33,142.3,3.5127]
[1724171792160,36.2939,142.33,142.3,3.5127]
[1724171792375,36.2939,142.33,142.23,32.38]
[1724171792565,36.34753879,142.33,142.3,0.05345074]
[1724171792970,3.5124,142.32,142.29,3.513]
[1724171793169,36.3437357,142.33,142.3,0.04710226]
[1724171793362,32.38,142.31,142.3,0.04710226]
[1724171794073,32.38,142.31,142.27,3.5135]
[1724171794261,25.0139,142.33,142.21,39.41]
[1724171794262,32.38,142.29,142.21,39.41]
[1724171794461,12.95,142.27,142.26,3.5137]
[1724171796577,0.04713371,142.28,142.26,3.5137]
[1724171796780,0.04713371,142.28,142.27,3.5136]
[1724171804384,21.1,142.37,142.27,3.5136]
[1724171804385,7.33809536,142.5,142.27,32.36]
[1724171804588,32.36,142.4,142.3,32.36]
[1724171805095,32.36,142.4,142.28,33.7247]
[1724171805096,32.36,142.38,142.28,33.7247]
[1724171805476,0.04967134,142.34,142.32,3.56181736]
[1724171805780,0.04979004,142.34,142.32,3.56181736]
[1724171806587,0.04979004,142.34,142.32,0.04961736]
[1724171806991,3.56169004,142.34,142.32,0.04961736]
[1724171807283,35.92169004,142.34,142.32,0.04961736]
[1724171808178,3.5121,142.33,142.32,0.04961736]
[1724171809078,3.5127,142.31,142.25,1.2466]
[1724171809281,35.8727,142.31,142.25,1.2466]
[1724171809590,35.8727,142.31,142.28,3.5133]
[1724171810892,35.8727,142.31,142.28,3.56617145]
[1724171811086,35.92261881,142.31,142.28,3.56617145]
[1724171811787,3.5129,142.3,142.28,3.56617145]
[1724171812694,35.92261881,142.31,142.28,3.56617145]
[1724171815097,3.5129,142.3,142.28,3.56617145]
[1724171816986,3.5131,142.29,142.28,0.05287145]
[1724171818689,35.8731,142.29,142.28,0.05287145]
[1724171822398,16.4531,142.29,142.28,0.05287145]
[1724171824291,16.453,142.3,142.28,0.05287145]
[1724171824506,12.94,142.3,142.28,0.05287145]
[1724171824896,16.4531,142.3,142.28,0.05287145]
[1724171825107,0.04991881,142.31,142.28,0.05287145]
[1724171825605,0.04991881,142.31,142.3,3.5129]
[1724171826498,3.5118,142.35,142.3,3.5129]
[1724171826711,3.5118,142.35,142.32,3.5122]
[1724171826914,3.5118,142.35,142.28,1.3341]
[1724171827704,0.05234756,142.33,142.3,0.05390472]
[1724171827904,0.05234756,142.33,142.32,3.5124]
[1724171828495,36.4304,142.4,142.34,3.5117]
[1724171828697,36.4304,142.4,142.3,32.38]
[1724171828902,3.5113,142.37,142.3,32.38]
[1724171829099,36.4304,142.4,142.35,3.5116]
[1724171829300,36.4304,142.4,142.3,32.38]
[1724171829500,36.4304,142.4,142.34,0.04519664]
[1724171829699,0.04625241,142.36,142.35,3.5116]
[1724171829901,3.5106,142.39,142.35,3.5116]
[1724171830102,0.05209727,142.37,142.35,3.5116]
[1724171830306,0.05209727,142.37,142.36,3.5114]
[1724171833114,0.05209727,142.37,142.35,3.5115]
[1724171833911,0.05209727,142.37,142.36,3.5114]
[1724171835429,0.05209727,142.37,142.35,3.5115]
[1724171839113,0.05209727,142.37,142.36,3.5114]
[1724171839709,0.05209727,142.37,142.35,3.5116]
[1724171841917,3.56319727,142.37,142.35,3.5116]
[1724171842125,0.05209727,142.37,142.35,3.5116]
[1724171842714,0.05209727,142.37,142.34,0.04519664]
[1724171843309,3.5115,142.36,142.34,0.04519664]
[1724171844517,3.56329727,142.37,142.34,3.55689664]
[1724171845219,0.05209727,142.37,142.35,3.5116]
[1724171847215,3.56329727,142.37,142.34,3.55699664]
[1724171848521,16.51329727,142.37,142.34,3.55699664]
[1724171849421,16.51329727,142.37,142.35,3.5116]
[1724171849723,16.51329727,142.37,142.34,0.04519664]
[1724171850224,16.51329727,142.37,142.34,3.55689664]
[1724171852529,16.51329727,142.37,142.35,3.5116]
[1724171852726,16.51329727,142.37,142.34,0.04519664]
[1724171852727,0.05209727,142.37,142.34,0.04519664]
[1724171852922,0.05209727,142.37,142.35,3.5115]
[1724171853118,3.56329727,142.37,142.35,3.5115]
[1724171855125,0.05209727,142.37,142.35,3.5115]
[1724171859531,16.51319727,142.37,142.35,3.5115]
[1724171859838,13.00209727,142.37,142.34,3.55689664]
[1724171860924,3.5114,142.36,142.34,3.55689664]
[1724171861736,0.05209727,142.37,142.36,3.5114]
[1724171861936,12.95,142.43,142.36,12.95]
[1724171862127,12.95,142.43,142.34,1.3277]
[1724171862128,12.95,142.43,142.38,12.95]
[1724171862327,12.95,142.45,142.38,12.95]
[1724171862928,0.04575689,142.43,142.41,3.51]
[1724171864644,3.55545689,142.43,142.41,3.51]
[1724171864840,0.04575689,142.43,142.41,3.51]
[1724171865041,0.04575689,142.43,142.42,3.5099]
[1724171865236,0.04575689,142.43,142.4,0.04915217]
[1724171865741,0.04575689,142.43,142.41,3.51]
[1724171867148,0.04575689,142.43,142.4,0.04915217]
[1724171867149,16.50545689,142.43,142.4,3.55945217]
[1724171868842,3.51,142.42,142.4,3.55945217]
[1724171870038,3.55555689,142.43,142.4,3.55945217]
[1724171870842,3.55555689,142.43,142.41,3.51]
[1724171873745,0.04575689,142.43,142.42,3.5099]
[1724171876045,3.55555689,142.43,142.41,3.51]
[1724171878149,0.04575689,142.43,142.4,0.04915217]
[1724171878454,0.04575689,142.43,142.41,12.95]
[1724171878752,0.04575689,142.43,142.42,3.5099]
[1724171879664,0.04575689,142.43,142.42,16.4599]
[1724171879954,12.95,142.48,142.42,12.95]
[1724171880144,3.5087,142.47,142.42,12.95]
[1724171880348,12.95,142.48,142.42,12.95]
[1724171881049,3.5087,142.47,142.44,3.55562839]
[1724171881354,12.95,142.47,142.44,0.04622839]
[1724171882057,12.95,142.45,142.44,0.04622839]
[1724171882457,16.4592,142.45,142.44,0.04622839]
[1724171882959,3.5092,142.45,142.44,0.04622839]
[1724171883165,16.4592,142.45,142.44,0.04622839]
[1724171883653,3.5097,142.43,142.4,3.5103]
[1724171883856,16.4597,142.43,142.4,3.5103]
[1724171884255,3.5096,142.44,142.38,15.521]
[1724171884456,12.95,142.46,142.4,12.95]
[1724171884759,12.95,142.46,142.42,3.5098]
[1724171884760,3.5092,142.45,142.42,3.5098]
[1724171885464,0.04622839,142.44,142.42,0.05140356]
[1724171886153,0.04622839,142.44,142.42,3.56120356]
[1724171887557,0.04622839,142.44,142.42,0.05140356]
[1724171888159,0.04622839,142.44,142.42,3.56120356]
[1724171890267,0.04622839,142.44,142.43,3.5096]
[1724171895173,16.4586,142.48,142.45,3.5091]
[1724171895561,12.95,142.48,142.43,12.95]
[1724171895870,12.95,142.48,142.38,2.571]
[1724171896060,12.95,142.48,142.42,0.04718368]
[1724171896258,16.4585,142.48,142.45,3.509]
[1724171896466,16.4585,142.48,142.45,3.55706569]
[1724171898171,16.4583,142.49,142.46,3.5088]
[1724171899265,12.95,142.51,142.45,12.99806569]
[1724171899570,12.95,142.52,142.45,12.99806569]
[1724171899864,12.95,142.52,142.47,12.95]
[1724171900665,3.5077,142.51,142.48,3.5082]
[1724171901065,3.5077,142.51,142.48,3.5544279]
[1724171901668,3.5077,142.51,142.49,3.5081]
[1724171901874,3.5077,142.51,142.48,0.0462279]
[1724171902572,3.5077,142.51,142.48,3.5545279]
[1724171903172,12.95,142.5,142.48,0.0462279]
[1724171903576,16.4581,142.5,142.48,0.0462279]
[1724171904080,3.5082,142.49,142.48,0.0462279]
[1724171906263,16.4582,142.49,142.48,0.0462279]
[1724171907867,3.5082,142.49,142.48,0.0462279]
[1724171917280,3.5081,142.5,142.48,0.0462279]
[1724171917475,3.5081,142.5,142.48,3.5546279]
[1724171917669,3.5081,142.5,142.48,0.0462279]
[1724171920483,16.4579,142.51,142.48,3.5546279]
[1724171920777,12.95,142.51,142.48,3.5546279]
[1724171921172,3.508,142.5,142.48,3.5546279]
[1724171924783,12.95,142.52,142.49,3.5082]
[1724171925375,16.4577,142.52,142.49,3.5082]
[1724171925576,12.95,142.55,142.51,3.5075]
[1724171926081,3.5071,142.54,142.52,3.55499118]
[1724171926276,3.5071,142.54,142.52,3.55403155]
[1724171926471,25.0938,142.6,142.52,0.04663155]
[1724171926680,16.4572,142.53,142.52,0.04663155]
[1724171928683,12.95,142.53,142.44,1.2626]
[1724171928887,12.95,142.51,142.45,12.95]
[1724171929183,16.4575,142.52,142.46,12.95]
[1724171929384,16.4575,142.52,142.48,3.5082]
[1724171929686,0.04663155,142.51,142.49,0.04562934]
[1724171929882,3.55433155,142.51,142.49,0.04562934]
[1724171936987,3.5079,142.5,142.49,0.04562934]
[1724171939596,3.55443155,142.51,142.49,3.55372934]
[1724171939985,0.04663155,142.51,142.49,0.04562934]
[1724171940186,0.04663155,142.51,142.5,3.5079]
[1724171940894,0.04663155,142.51,142.49,0.04562934]
[1724171941395,12.99663155,142.51,142.49,0.04562934]
[1724171941601,12.95,142.5,142.49,0.04562934]
[1724171941794,16.4579,142.5,142.49,0.04562934]
[1724171942500,16.4579,142.5,142.43,1.264]
[1724171942501,3.509,142.46,142.43,1.264]
[1724171942796,12.95,142.46,142.41,14.2324]
[1724171943598,0.04614276,142.45,142.42,0.0493828]
[1724171944196,12.95,142.51,142.44,12.95]
[1724171944393,12.95,142.51,142.46,12.95]
[1724171944701,3.5079,142.51,142.48,3.5083]
[1724171945302,3.5079,142.51,142.48,3.55549299]
[1724171945500,0.04611813,142.51,142.48,0.04719299]
[1724171945899,0.04611813,142.51,142.48,3.55549299]
[1724171945900,3.55391813,142.51,142.48,3.55549299]
[1724171946301,12.99611813,142.51,142.48,0.04719299]
[1724171947005,3.508,142.5,142.48,3.55549299]
[1724171947308,12.99611813,142.51,142.48,3.55549299]
[1724171947607,16.50391813,142.51,142.48,3.55549299]
[1724171952010,0.04611813,142.51,142.48,0.04719299]
[1724171952215,0.04611813,142.51,142.48,12.99719299]
[1724171953814,0.04611813,142.51,142.5,3.5079]
[1724171955211,0.04611813,142.51,142.49,3.508]
[1724171955607,3.55381813,142.51,142.49,3.508]
[1724171956208,16.50381813,142.51,142.49,3.508]
[1724171957523,3.508,142.5,142.48,0.04719299]
[1724171957714,12.95,142.49,142.48,0.04719299]
[1724171958120,16.4582,142.49,142.48,0.04719299]
[1724171961315,3.5082,142.49,142.48,0.04719299]
[1724171963412,16.458,142.5,142.48,0.04719299]
[1724171963918,3.508,142.5,142.48,3.55549299]
[1724171964124,3.5082,142.49,142.48,0.04719299]
[1724171965418,16.4582,142.49,142.48,0.04719299]
[1724171969924,3.5082,142.49,142.48,0.04719299]
[1724171970722,0.04611813,142.51,142.5,3.5079]
[1724171970937,0.04611813,142.51,142.5,16.4579]
[1724171971123,58.11453493,142.65,142.5,12.95]
[1724171971316,58.11453493,142.65,142.53,3.5071]
[1724171971317,16.4566,142.56,142.53,3.5071]
[1724171971919,3.5067,142.55,142.52,3.5073]
[1724171972120,3.5067,142.55,142.52,3.55800451]
[1724171973121,35.86018843,142.57,142.52,0.05070451]
[1724171973122,3.5069,142.54,142.52,0.05070451]
[1724171974328,3.5069,142.54,142.52,3.55810451]
[1724171974924,3.5072,142.53,142.52,0.05070451]
[1724171975120,32.33,142.55,142.52,0.05070451]
[1724171975322,3.5071,142.54,142.52,0.05070451]
[1724171975526,32.33,142.55,142.52,0.05070451]
[1724171975920,3.52748905,142.54,142.52,0.05070451]
[1724171976634,3.5072,142.53,142.52,0.05070451]
[1724171994944,12.93,142.55,142.52,0.05070451]
[1724171995845,16.46534778,142.55,142.52,0.05070451]
[1724171996051,3.5072,142.53,142.52,0.05070451]
[1724172001470,51.72,142.53,142.43,14.2312]
[1724172001765,12.93,142.5,142.43,14.2312]
[1724172001960,16.438,142.5,142.47,3.5086]
[1724172002468,16.48870451,142.5,142.47,3.55943856]
[1724172003970,16.4384,142.48,142.47,0.05083856]
[1724172004174,12.93,142.48,142.38,85.74724666]
[1724172004471,3.5097,142.43,142.4,3.5103]
[1724172004667,12.93,142.44,142.38,15.5919]
[1724172004867,75.3674,142.53,142.39,12.93]
[1724172005071,2.5474,142.53,142.42,12.93]
[1724172005368,0.04748828,142.47,142.45,0.04837259]
[1724172005565,3.5086,142.48,142.45,3.55727259]
[1724172005867,0.05145679,142.47,142.45,0.04837259]
[1724172006370,0.05145679,142.47,142.46,3.5088]
[1724172006872,0.05145679,142.47,142.45,3.55737259]
[1724172007269,0.05145679,142.47,142.45,0.04837259]
[1724172007678,0.05145679,142.47,142.46,3.5089]
[1724172012680,0.05145679,142.47,142.45,3.55737259]
[1724172012983,12.98145679,142.47,142.45,3.55737259]
[1724172013371,16.49005679,142.47,142.45,0.04837259]
[1724172013771,12.98145679,142.47,142.45,3.55747259]
[1724172017179,0.05145679,142.47,142.46,3.5089]
[1724172018483,12.98145679,142.47,142.45,0.04837259]
[1724172018985,12.98145679,142.47,142.46,3.5089]
[1724172019489,12.98145679,142.47,142.45,0.04837259]
[1724172019783,12.98145679,142.47,142.38,72.81548471]
[1724172019784,12.93,142.46,142.38,72.81548471]
[1724172019973,3.54921345,142.47,142.38,30.99977043]
[1724172019974,12.93,142.43,142.38,30.99977043]
[1724172020178,12.93,142.43,142.38,2.6287]
[1724172020379,12.93,142.41,142.38,2.6287]
[1724172020585,12.93,142.41,142.4,3.5102]
[1724172020782,12.93,142.41,142.38,2.6287]
[1724172021283,12.93,142.41,142.39,3.5104]
[1724172021686,16.4401,142.41,142.38,3.5108]
[1724172021883,12.93,142.41,142.39,0.04922228]
[1724172024284,12.93,142.4,142.39,0.04922228]
[1724172024686,12.93,142.4,142.35,1.2521]
[1724172024886,12.93,142.37,142.35,1.2521]
[1724172025096,3.8974,142.46,142.35,1.2521]
[1724172025288,12.93,142.4,142.35,1.2521]
[1724172025595,12.93,142.4,142.37,3.511]
[1724172025792,0.05268794,142.39,142.36,1.34285505]
[1724172025984,3.8974,142.46,142.35,14.1821]
[1724172025985,12.93,142.42,142.35,14.1821]
[1724172026291,0.04786615,142.39,142.36,1.33796601]
[1724172026893,0.04786615,142.39,142.38,3.5108]
[1724172027098,12.93,142.42,142.36,0.04833498]
[1724172027393,12.93,142.42,142.36,1.33793079]
[1724172028496,3.5092,142.45,142.37,12.93]
[1724172028798,12.93,142.44,142.38,1.28959581]
[1724172028987,0.05198281,142.4,142.39,3.5106]
[1724172029186,3.9827,142.52,142.39,12.93]
[1724172029384,3.9827,142.52,142.42,12.93]
[1724172029596,12.93,142.49,142.45,3.5091]
[1724172029794,12.93,142.48,142.45,3.5091]
[1724172030585,12.98116295,142.48,142.45,3.56059367]
[1724172031394,12.93,142.47,142.45,3.56059367]
[1724172032488,0.05116295,142.48,142.45,3.56059367]
[1724172033190,0.05116295,142.48,142.45,0.05149367]
[1724172033896,0.05116295,142.48,142.47,3.5086]
[1724172036188,32.37116295,142.48,142.46,3.5088]
[1724172036394,32.37116295,142.48,142.45,0.05149367]
[1724172036799,35.87976295,142.48,142.45,3.56049367]
[1724172037102,32.32,142.46,142.45,3.56049367]
[1724172037299,32.32,142.46,142.45,0.05149367]
[1724172038516,35.8289,142.46,142.45,0.05149367]
[1724172039003,35.8289,142.46,142.4,2.5267]
[1724172039195,32.32,142.44,142.4,2.5267]
[1724172039400,32.32,142.44,142.36,32.32]
[1724172039596,32.32,142.44,142.37,3.78843957]
[1724172039809,32.32,142.42,142.38,1.28933957]
[1724172040101,32.32,142.42,142.37,2.4991]
[1724172040102,0.05228583,142.41,142.39,0.04784806]
[1724172040606,0.05228583,142.41,142.4,3.5102]
[1724172041304,0.05228583,142.41,142.39,0.04784806]
[1724172041505,32.37228583,142.41,142.39,0.04784806]
[1724172041801,0.05228583,142.41,142.4,3.5103]
[1724172045304,32.32,142.46,142.43,3.5094]
[1724172046208,32.3714852,142.46,142.43,3.55476451]
[1724172047301,35.8803852,142.46,142.43,3.55476451]
[1724172047501,32.32,142.44,142.43,0.04536451]
[1724172049002,35.8294,142.44,142.43,0.04536451]
[1724172050913,35.8294,142.44,142.41,3.5101]
[1724172052016,35.87853315,142.44,142.41,3.55815939]
[1724172052318,16.31122355,142.58,142.43,3.5096]
[1724172052618,32.32,142.48,142.43,3.5096]
[1724172053004,3.5088,142.47,142.43,3.5096]
[1724172053413,3.5088,142.47,142.44,3.5093]
[1724172053612,35.8291,142.45,142.44,0.04638788]
[1724172053818,32.32,142.45,142.44,0.04638788]
[1724172054004,32.32,142.45,142.43,0.04697064]
[1724172054202,32.37225844,142.45,142.43,0.04598781]
[1724172054711,32.37225844,142.45,142.43,3.55548781]
[1724172054910,32.37225844,142.45,142.43,0.04598781]
[1724172055113,16.30969535,142.6,142.43,0.04598781]
[1724172055114,23.7457,142.59,142.5,3.5078]
[1724172055305,3.5073,142.53,142.44,32.32]
[1724172055503,3.5073,142.53,142.44,35.88389155]
[1724172055719,3.5073,142.53,142.49,3.5079]
[1724172056218,0.04246974,142.52,142.5,0.05174641]
[1724172056411,0.04246974,142.52,142.5,3.55964641]
[1724172057322,3.54986974,142.52,142.5,0.05174641]
[1724172057511,35.86986974,142.52,142.5,0.05174641]
[1724172059707,35.86986974,142.52,142.5,3.55964641]